[Event "FIDE CB Open 2022"]
[Site "Ceske Budejovice"]
[Date "2022.07.05"]
[Round "5.1"]
[White "Roshka, Yevgeniy"]
[Black "Domalchuk-Jonasson, Aleksandr"]
[Result "1-0"]
[ECO "C00"]
[WhiteElo "2497"]
[BlackElo "2244"]
[Annotator "TA"]
[PlyCount "119"]
[EventDate "2022.07.01"]
[EventType "swiss"]
[EventCountry "CZE"]
[SourceTitle "playchess.com"]
[Source "ChessBase"]
[SourceQuality "1"]
[TimeControl "40/5400+30:1800+30"]

{[%evp 20,119,-16,0,0,0,16,7,5,0,0,0,0,0,0,7,0,0,12,-50,129,120,168,94,130,102,118,108,185,170,197,155,155,155,200,200,200,200,200,200,200,200,200,200,200,200,200,200,200,200,200,200,200,193,329,327,359,345,623,373,640,593,679,611,690,669,611,597,552,367,932,736,611,308,555,421,384,365,29964,29965,29965,29966,29966,29968,29962,7108,29957,5639,29956,2622,29982,29983,29984,29985,29994,29995,29995,29996,29996,29997,29997,29998]} 1. Nf3 {[%emt 0:02:33]} d5 {[%emt 0:00:16]} 2. g3 {[%emt 0:02:40]} e6 {[%emt 0:02:13]} 3. Bg2 {[%emt 0:00:23]} Nf6 {[%emt 0:00:19]} 4. O-O {[%emt 0:00:48]} Be7 {[%emt 0:02:06]} 5. d3 {[%emt 0:05:15]} c5 {[%emt 0:01:13]} 6. Nbd2 {[%emt 0:01:26]} Nc6 {[%emt 0:01:10]} 7. e4 {[%emt 0:00:16]} b6 {[%emt 0:04:24]} 8. Re1 {[%emt 0:01:03]} Bb7 {[%emt 0:02:15]} 9. c3 {[%emt 0:00:15]} Qc7 {[%emt 0:03:28]} 10. a3 {[%emt 0:00:20]} dxe4 {[%emt 0:03:24]} 11. dxe4 {[%emt 0:00:11]} O-O {[%emt 0:00:38] C00: French: Unusual White 2nd moves.} 12. Nc4 {[%emt 0:04:53] [#]} Rfd8 $146 {[%emt 0:10:59]} ({Predecessor:} 12... Rad8 13. Qb3 Qc8 14. e5 Ne8 15. Bg5 h6 16. Bxe7 Nxe7 17. Rad1 Bd5 18. Qa4 Qb8 19. Ne3 {1-0 (53) Gukesh,D (2453)-Diermair,A (2501) Trieste 2018}) 13. Qb3 {[%emt 0:01:47]} h6 {[%emt 0:16:35] The position is equal.} 14. a4 {[%emt 0:04:46]} Ba6 {[%emt 0:06:50]} 15. Bf4 {[%emt 0:11:48]} Bxc4 {[%emt 0:05:18]} 16. Qxc4 {[%emt 0:00:02]} e5 {[%emt 0:00:15]} 17. Be3 {[%emt 0:00:31]} Na5 {[%emt 0:04:01]} 18. Qe2 {[%emt 0:00:08]} Ng4 {[%emt 0:01:13]} 19. c4 {[%emt 0:06:11]} ({White should play} 19. Rad1 $11) 19... Qd7 $2 {[%emt 0:07:22] [#]} (19... Nxe3 $15 {stays ahead.} 20. fxe3 Rab8) 20. Bh3 $1 $16 {[%emt 0:01:10]} f5 {[%emt 0:06:44]} (20... h5 $16) 21. Red1 {[%emt 0:04:47]} (21. exf5 $18 h5 22. Bxg4 hxg4 23. Nxe5 Qxf5 24. Nxg4) 21... Qb7 {[%emt 0:03:45]} 22. exf5 {[%emt 0:01:05]} Nxe3 {[%emt 0:00:05]} 23. Qxe3 {[%emt 0:00:16]} Nxc4 {[%emt 0:00:36]} (23... e4 $16) 24. Qe2 $36 {[%emt 0:02:47][%mdl 2048] White is really pushing.} Kh8 {[%emt 0:03:03][%cal Oa8b8]} 25. Bg2 {[%emt 0:05:50]} ({Weaker is} 25. Nxe5 Nxe5 26. Qxe5 Bf6 $14) 25... e4 {[%emt 0:01:02][%cal Oa8c8]} 26. Nh4 {[%emt 0:00:02]} Rxd1+ {[%emt 0:02:04]} 27. Rxd1 {[%emt 0:00:21]} Bxh4 {[%emt 0:00:53]} 28. Qxc4 {[%emt 0:00:19]} ({Don't play} 28. gxh4 $6 Na5 $16) 28... Rd8 {[%emt 0:00:12]} 29. Rxd8+ {[%emt 0:03:04]} Bxd8 {[%emt 0:00:04]} 30. Bxe4 {[%emt 0:00:06][%mdl 4096] Endgame KQB-KQB} Qd7 {[%emt 0:01:10]} 31. Kg2 {[%emt 0:03:26]} Bf6 {[%emt 0:00:30]} 32. b3 {[%emt 0:00:09]} Kh7 {[%emt 0:01:46]} 33. h4 {[%emt 0:01:46]} Kh8 {[%emt 0:01:50]} 34. Qe2 {[%emt 0:07:00]} Qe7 {[%emt 0:01:36]} 35. Qf3 {[%emt 0:00:48]} Bd4 {[%emt 0:00:27]} 36. Bd5 {[%emt 0:00:22] And now Bc4 would win.} Kh7 {[%emt 0:02:18]} (36... Bf6 $142 37. Be6 Qc7 38. Qa8+ Bd8) 37. Be6 {[%emt 0:00:20] [#] White threatens Qa8 and mate.} Qd8 {[%emt 0:01:49] Inhibits Qa8.} 38. Qb7 {[%emt 0:01:36] Inhibits Qb8.} a5 $2 {[%emt 0:01:13]} (38... Kh8 39. Qxa7 Bc3) 39. Bd5 {[%emt 0:01:08] Threatens to win with Qf7.} Bf6 $2 {[%emt 0:00:46]} (39... c4 40. bxc4 Bf6) 40. Qf7 {[%emt 0:00:08]} Kh8 {[%emt 0:00:33]} 41. Kh3 {[%emt 0:31:20]} Be7 {[%emt 0:09:32]} 42. f4 {[%emt 0:00:00]} Qf8 {[%emt 0:05:47]} 43. Qe6 {[%emt 0:00:00]} Bd6 {[%emt 0:04:26]} 44. Kg4 {[%emt 0:00:00] Kf3 is the strong threat.} Qd8 $2 {[%emt 0:00:34]} (44... c4 45. bxc4 Bc5) 45. Kf3 {[%emt 0:00:00]} Be7 {[%emt 0:04:00]} 46. Ke4 {[%emt 0:00:00]} Bf6 $2 {[%emt 0:01:05]} (46... Bd6 47. g4 Qe7) 47. Kd3 {[%emt 0:00:00]} c4+ {[%emt 0:06:00]} 48. bxc4 {[%emt 0:00:00]} Kh7 $2 {[%emt 0:00:50]} (48... Qf8 $18 49. Qxb6 Bd8) 49. Qf7 {[%emt 0:00:00]} Kh8 {[%emt 0:03:12]} 50. g4 {[%emt 0:00:00][%cal Bg3g4,Bg4g5][%mdl 32]} Be7 {[%emt 0:01:23]} 51. g5 {[%emt 0:00:00]} Qf8 {[%emt 0:00:02]} 52. Qg6 {[%emt 0:00:00]} Bd8 {[%emt 0:00:07]} 53. Ke2 {[%emt 0:00:00] Intending Kf3 and mate.} Qe7+ {[%emt 0:01:07]} 54. Be6 {[%emt 0:00:00]} (54. Kf3 $142 Qa3+ 55. Kg4 Qf8 56. Be4 Kg8 57. f6 Be7 58. Qh7+ Kf7 59. Bd5+ Ke8 60. fxg7) 54... Bc7 {[%emt 0:00:09]} 55. Kf1 {[%emt 0:12:51] White mates.} Qd8 {[%emt 0:01:00]} 56. Bd5 {[%emt 0:00:10]} Bxf4 {[%emt 0:01:14]} 57. f6 {[%emt 0:00:37][%csl Gg6][%cal Rf6g7]} Qf8 {[%emt 0:00:34]} 58. fxg7+ {[%emt 0:00:08]} Qxg7 {[%emt 0:00:04]} 59. Qe8+ {[%emt 0:00:04]} Kh7 {[%emt 0:00:04]} 60. Be4+ {[%emt 0:00:01] Weighted Error Value: White=0.28 (precise) /Black=0.73} 1-0

[Event "FIDE CB Open 2022"]
[Site "Ceske Budejovice"]
[Date "2022.07.05"]
[Round "5.2"]
[White "Hrbek, Stepan"]
[Black "Neuman, Petr"]
[Result "1/2-1/2"]
[ECO "D15"]
[WhiteElo "2272"]
[BlackElo "2378"]
[Annotator "TA"]
[PlyCount "103"]
[EventDate "2022.07.01"]
[EventType "swiss"]
[EventCountry "CZE"]
[SourceTitle "playchess.com"]
[Source "ChessBase"]
[SourceQuality "1"]
[TimeControl "40/5400+30:1800+30"]

{[%evp 9,103,20,28,34,39,31,40,26,34,33,37,31,34,27,33,-7,35,34,22,23,35,33,31,34,28,31,35,28,18,19,25,4,15,0,0,0,0,0,42,42,41,0,0,0,7,0,0,0,0,0,0,0,0,0,0,0,0,0,0,0,0,0,4,0,0,0,0,0,0,0,0,0,0,0,0,0,0,0,29975,0,0,0,0,0,0,0,0,0,0,0,0,0,0,0,0,0]} 1. c4 {[%emt 0:00:17]} c6 {[%emt 0:00:07]} 2. Nf3 {[%emt 0:00:24]} d5 {[%emt 0:00:05]} 3. e3 {[%emt 0:00:16]} Nf6 {[%emt 0:00:24]} 4. Nc3 {[%emt 0:00:17]} a6 {[%emt 0:00:45]} 5. d4 {[%emt 0:00:35]} Bf5 {[%emt 0:00:35]} 6. Ne5 {[%emt 0:00:22] D15: Slav Defence: 4 Nc3 a6 and gambit lines after 4 Nc3 dxc4.} Nbd7 {[%emt 0:00:28]} 7. Qb3 {[%emt 0:00:31][%csl LRb7,LRd5]} Qc7 {[%emt 0:00:16]} 8. cxd5 {[%emt 0:00:19] White is slightly better.} Nxe5 {[%emt 0:00:33]} 9. dxe5 {[%emt 0:00:08]} Nxd5 {[%emt 0:00:13]} 10. Nxd5 {[%emt 0:00:16]} cxd5 {[%emt 0:00:04]} 11. Bd2 {[%emt 0:00:15]} e6 {[%emt 0:00:55]} 12. Be2 {[%emt 0:00:17]} (12. Rc1 $5 {[%cal Rc1c7]} Qd7 13. Be2 $11) 12... Be7 {[%emt 0:01:13]} 13. Rc1 {[%emt 0:00:08]} Qd7 {[%emt 0:00:11]} 14. Ba5 {[%emt 0:00:33] Rc7 is the strong threat.} Rc8 {[%emt 0:00:22] Against Rc7} 15. Rxc8+ {[%emt 0:00:26]} Qxc8 {[%emt 0:00:04]} 16. Kd2 {[%emt 0:02:23] [#] Inhibits Qc1+. aiming for Rc1.} O-O {[%emt 0:00:35][%cal Od5d4]} 17. Rc1 {[%emt 0:01:49]} Qa8 {[%emt 0:00:14]} 18. Bb4 {[%emt 0:04:46]} Bxb4+ {[%emt 0:01:02]} 19. Qxb4 {[%emt 0:00:08]} Rc8 {[%emt 0:00:07] Prevents Rc7.} 20. Rc5 {[%emt 0:19:14] [#]} h6 $146 {[%emt 0:08:20]} ({Predecessor:} 20... Rxc5 21. Qxc5 Qd8 22. a4 a5 23. g4 Bg6 24. h4 h5 25. g5 b6 26. Qc6 Kh7 {0-1 (46) Navara,D (2700)-Malakhov,V (2717) Riga 2014}) 21. Qc3 {[%emt 0:14:38]} Rxc5 {[%emt 0:01:33]} 22. Qxc5 $11 {[%emt 0:00:12][%mdl 4096] Endgame KQB-KQB} Qd8 {[%emt 0:03:17]} 23. g3 {[%emt 0:02:51] Against Qh4} f6 {[%emt 0:01:39]} 24. exf6 {[%emt 0:06:32]} gxf6 {[%emt 0:00:43]} 25. Bd3 {[%emt 0:02:48]} Bxd3 {[%emt 0:01:38]} 26. Kxd3 {[%emt 0:00:22] KQ-KQ} Qd7 {[%emt 0:00:42]} 27. b3 {[%emt 0:03:32]} Kf7 {[%emt 0:04:36]} 28. f4 {[%emt 0:03:58]} h5 {[%emt 0:01:57]} 29. a4 {[%emt 0:10:56]} Kg7 {[%emt 0:23:38]} 30. Kd4 {[%emt 0:11:20]} Kf7 {[%emt 0:00:19]} 31. Kd3 {[%emt 0:00:21]} Kg7 {[%emt 0:00:04]} 32. Kd4 {[%emt 0:00:19]} Kf7 {[%emt 0:00:05]} 33. h3 {[%emt 0:00:25][%cal Bh2h3,Bh3g4][%mdl 32]} Kg7 {[%emt 0:07:17]} 34. g4 {[%emt 0:00:47]} hxg4 {[%emt 0:00:06]} 35. hxg4 {[%emt 0:00:05]} Qd8 {[%emt 0:06:17]} 36. e4 {[%emt 0:01:42]} dxe4+ {[%emt 0:01:39]} 37. Kxe4 {[%emt 0:00:07]} Qd7 {[%emt 0:04:14]} 38. g5 {[%emt 0:03:56]} Kg6 {[%emt 0:02:55]} 39. gxf6 {[%emt 0:03:04]} Kxf6 {[%emt 0:00:30]} 40. a5 {[%emt 0:02:08]} Qh7+ {[%emt 0:14:38]} 41. Kd4 {[%emt 0:31:16] [#] White wants to mate with Qe5+.} Qd7+ {[%emt 0:31:32]} 42. Kc4 {[%emt 0:00:56]} Qd2 {[%emt 0:02:50]} 43. Qd4+ {[%emt 0:00:00]} Qxd4+ {[%emt 0:00:00]} 44. Kxd4 {[%emt 0:00:00] Threatening mate with Kc5. K3P-K3P} Kf5 {[%emt 0:00:00] The position is equal.} 45. Ke3 {[%emt 0:00:00]} e5 {[%emt 0:00:00]} 46. fxe5 {[%emt 0:00:00]} Kxe5 {[%emt 0:00:00] KPP-KPP} 47. Kd3 {[%emt 0:00:00]} Kd5 {[%emt 0:00:00]} 48. b4 {[%emt 0:00:00]} Kc6 {[%emt 0:00:00]} 49. Kc4 {[%emt 0:00:00]} b6 {[%emt 0:00:00]} 50. axb6 {[%emt 0:00:00]} Kxb6 {[%emt 0:00:00]} 51. Kb3 {[%emt 0:00:00]} a5 {[%emt 0:00:00]} 52. bxa5+ {[%emt 0:00:00] Weighted Error Value: White=0.04 (flawless) /Black=0.03 (flawless)} 1/2-1/2

[Event "FIDE CB Open 2022"]
[Site "Ceske Budejovice"]
[Date "2022.07.05"]
[Round "5.3"]
[White "Heimisson, Hilmir Freyr"]
[Black "Librelato, Kathie Goulart"]
[Result "1/2-1/2"]
[ECO "A46"]
[WhiteElo "2281"]
[BlackElo "2255"]
[Annotator "TA"]
[PlyCount "199"]
[EventDate "2022.07.01"]
[EventType "swiss"]
[EventCountry "CZE"]
[SourceTitle "playchess.com"]
[Source "ChessBase"]
[SourceQuality "1"]
[TimeControl "40/5400+30:1800+30"]

{[%evp 9,199,-4,-4,-4,-2,0,0,0,0,0,0,0,0,-18,0,0,0,0,0,0,0,0,0,0,0,0,0,0,0,0,0,0,0,0,17,0,181,134,284,302,670,618,633,614,584,554,527,308,290,292,303,293,290,211,200,201,201,199,329,130,129,83,90,83,79,50,55,44,52,0,59,53,47,43,43,40,47,52,53,58,66,0,36,0,23,0,35,19,28,53,48,29,23,28,59,66,78,78,83,75,94,91,158,152,154,89,119,91,84,23,33,8,0,0,27,0,0,0,0,0,0,0,0,0,0,0,0,0,0,0,0,0,0,0,0,0,0,0,0,0,0,0,0,0,0,0,0,0,0,0,0,0,0,0,0,0,0,0,0,0,0,0,0,-8,-8,-8,0,0,0,0,0,0,0,0,0,0,0,0,0,0,0,0,0,0,0,0,0,0,0,0,0,0]} 1. d4 {[%emt 0:00:05]} d5 {[%emt 0:00:07]} 2. Nf3 {[%emt 0:01:26]} e6 {[%emt 0:00:14]} 3. g3 {[%emt 0:01:48]} Nf6 {[%emt 0:00:54]} 4. Bg2 {[%emt 0:00:19]} b5 {[%emt 0:04:40]} 5. Bg5 {[%emt 0:08:18]} Be7 {[%emt 0:00:37]} 6. Nbd2 {[%emt 0:01:12] A46: 1 d4 Nf6 2 Nf3 e6: Torre, London and Colle Systems.} Nbd7 {[%emt 0:01:42]} 7. O-O {[%emt 0:06:39]} O-O {[%emt 0:11:19]} 8. c3 {[%emt 0:10:49]} c5 {[%emt 0:03:44]} 9. a4 {[%emt 0:14:24]} b4 {[%emt 0:10:39]} 10. cxb4 {[%emt 0:02:59]} cxb4 {[%emt 0:00:12] [#]} (10... cxd4 {is interesting.} 11. Nxd4 Bxb4 12. e4 Bb7) 11. Bxf6 $146 {[%emt 0:00:39]} ({Predecessor:} 11. a5 Ba6 12. Re1 Rc8 13. Qa4 h6 14. Bxf6 Nxf6 15. Nb3 Qd7 16. Qxd7 Nxd7 17. Rac1 Rxc1 18. Rxc1 {0-1 (53) Cifuentes Parada,R (2433)-Velten,P (2515) San Sebastian 2019}) 11... Bxf6 {[%emt 0:05:08]} 12. Qb3 {[%emt 0:07:09]} a5 {[%emt 0:02:06]} 13. Rfc1 {[%emt 0:01:50]} Ba6 {[%emt 0:00:46]} 14. Bf1 {[%emt 0:02:56]} Rc8 {[%emt 0:06:18]} 15. e3 {[%emt 0:01:13]} Bxf1 {[%emt 0:00:30]} 16. Kxf1 {[%emt 0:00:18]} Nb6 {[%emt 0:08:50]} 17. Rc5 {[%emt 0:09:08]} Rxc5 {[%emt 0:00:57]} 18. dxc5 {[%emt 0:00:02]} Nc4 {[%emt 0:00:27]} 19. Nxc4 {[%emt 0:09:06]} dxc4 {[%emt 0:00:05]} 20. Qxc4 {[%emt 0:00:06]} Bxb2 {[%emt 0:00:07]} 21. Rb1 {[%emt 0:00:13][%cal Ba1b1,Bb1d1,Bd1d7][%mdl 32]} Bc3 {[%emt 0:00:35]} 22. Ke2 {[%emt 0:02:09] Threatens to win with Rd1.} h6 $2 {[%emt 0:09:29]} (22... Qc7 $11) 23. Rd1 $1 $18 {[%emt 0:01:27]} Qc7 {[%emt 0:00:19]} (23... Qa8 $16) 24. c6 $1 {[%emt 0:01:41]} Rc8 $2 {[%emt 0:15:08]} (24... Kh7 25. Rd7 Qc8) 25. Rd7 {[%emt 0:01:08]} Qb6 {[%emt 0:00:04]} 26. c7 {[%emt 0:05:39]} Bf6 {[%emt 0:00:04]} 27. Qb5 {[%emt 0:08:38]} Qa7 {[%emt 0:00:47]} 28. Rd8+ {[%emt 0:02:26]} Bxd8 {[%emt 0:02:22]} 29. Qe8+ {[%emt 0:00:06][%mdl 64] Pin, Double Attack} Kh7 {[%emt 0:00:05]} 30. cxd8=Q {[%emt 0:00:36] Threatening mate with Qg8+.} ({Don't take} 30. cxd8=R $6 Qa6+ 31. Ke1 Rxd8 32. Qxd8 Qc6 $18) 30... Qa6+ {[%emt 0:00:16]} 31. Kd2 {[%emt 0:00:55] Qg8+ would kill now.} Rxd8+ {[%emt 0:01:42]} 32. Qxd8 {[%emt 0:00:02] Hoping for Qd3+.} Qc6 {[%emt 0:00:15]} 33. Qd3+ {[%emt 0:00:38]} (33. Qxa5 Qxf3 34. Qxb4 Qxf2+ 35. Kd3 Qf1+ 36. Kd2 Qh1 $11) 33... g6 {[%emt 0:00:17]} (33... Kg8 $142) 34. Nd4 $2 {[%emt 0:00:41]} (34. Ne5 $18 {is the precise move to win.} Qc7 35. Qd4) 34... Qxa4 $16 {[%emt 0:00:15]} 35. Qc2 {[%emt 0:00:37] Against Qa2} (35. Qc4 $142) 35... Qa1 {[%emt 0:02:06] [#]} 36. Qc7 $1 {[%emt 0:00:26][%csl LRe6,LRf7]} Kg8 {[%emt 0:01:12]} 37. Qb8+ {[%emt 0:00:12]} Kg7 {[%emt 0:00:14]} 38. Qe5+ {[%emt 0:00:19]} Kg8 {[%emt 0:01:05]} 39. Qb5 {[%emt 0:00:57]} (39. Qc7 $14) 39... Qa3 {[%emt 0:10:19]} (39... Qa2+ $11 40. Ke1 Kg7) 40. Qc4 {[%emt 0:00:35]} Qb2+ $1 {[%emt 0:02:14]} 41. Qc2 {[%emt 0:03:04]} Qa1 {[%emt 0:00:50]} 42. Qc8+ {[%emt 0:10:31]} Kg7 {[%emt 0:00:23]} 43. Qc1 {[%emt 0:01:49]} Qa2+ {[%emt 0:01:06]} 44. Qc2 {[%emt 0:00:06]} Qa1 {[%emt 0:00:29]} 45. Kd3 {[%emt 0:04:22]} (45. Qc5 $14) 45... Qf1+ {[%emt 0:15:13]} 46. Qe2 {[%emt 0:04:50]} Qc1 {[%emt 0:00:05] Strongly threatening ...Qc3+.} 47. Qc2 {[%emt 0:02:31] Against Qc3+} Qf1+ {[%emt 0:00:05]} 48. Ke4 {[%emt 0:01:03]} Qh1+ {[%emt 0:01:00]} ({Don't play} 48... Qg2+ 49. f3 Qf1 50. Qa2 $14) 49. f3 {[%emt 0:01:14]} Qa1 {[%emt 0:00:57]} 50. Qb3 {[%emt 0:01:00]} (50. Qc5 $5 {[%cal Rc5e5]}) 50... Qc1 {[%emt 0:05:56]} 51. Qa2 {[%emt 0:02:52]} Qc3 {[%emt 0:01:17]} 52. f4 {[%emt 0:00:27]} ({Not} 52. Qxa5 $2 f5+ 53. Ke5 Qxe3+ 54. Kd6 Qxd4+ 55. Kxe6 Qf6+ 56. Kd5 b3 $19) 52... Qc5 {[%emt 0:02:16]} 53. Qa1 {[%emt 0:01:08] Intending Nf5+ and mate.} Kg8 {[%emt 0:01:59][%cal Ob4b3]} 54. Kd3 {[%emt 0:00:31]} Qh5 {[%emt 0:01:22]} 55. Qh1 {[%emt 0:00:58]} Qc5 {[%emt 0:00:36]} (55... e5 $142) 56. Qc6 {[%emt 0:00:26]} Qh5 {[%emt 0:00:22] [#]} 57. Qc2 {[%emt 0:00:42] Prevents Qd1+.} (57. Nf3 $142 $1) 57... e5 {[%emt 0:03:08]} (57... Qd5 $2 58. e4 Qd8 59. Qc5 $18) 58. fxe5 {[%emt 0:00:22]} Qxe5 {[%emt 0:00:06]} 59. Kd2 {[%emt 0:00:54]} (59. Qg2 $16) 59... Qd5 $11 {[%emt 0:00:37]} 60. Kc1 {[%emt 0:00:42]} Qh1+ {[%emt 0:00:49]} 61. Kb2 {[%emt 0:00:09]} a4 {[%emt 0:00:58][%cal Ba5a4,Ba4a3][%mdl 32]} 62. Qd2 {[%emt 0:01:16] And now Nc2 would win.} a3+ {[%emt 0:01:09] The position is equal.} 63. Ka2 {[%emt 0:00:35] aiming for Nc2.} Qd5+ {[%emt 0:00:13]} 64. Nb3 {[%emt 0:00:27]} Qc4 {[%emt 0:00:06]} 65. Qf2 {[%emt 0:00:35]} Kh7 {[%emt 0:01:17]} 66. Qg2 {[%emt 0:00:20]} Kg8 {[%emt 0:00:37]} 67. e4 {[%emt 0:00:18]} h5 {[%emt 0:00:36]} 68. e5 {[%emt 0:00:33]} Kh7 {[%emt 0:00:08]} 69. Qd2 {[%emt 0:00:23]} Kg7 {[%emt 0:00:19]} 70. Qg2 {[%emt 0:00:57]} Kh7 {[%emt 0:00:11]} 71. Qf2 {[%emt 0:00:19]} Kg8 {[%emt 0:00:08]} 72. Qd2 {[%emt 0:00:19]} Kh7 {[%emt 0:00:07]} 73. h3 {[%emt 0:00:27]} Kg8 {[%emt 0:00:30]} 74. Qf2 {[%emt 0:00:39]} Kh7 {[%emt 0:00:09]} 75. g4 {[%emt 0:00:44]} hxg4 {[%emt 0:00:18]} 76. hxg4 {[%emt 0:00:06]} Kg8 {[%emt 0:00:09]} 77. g5 {[%emt 0:00:32]} Kh7 {[%emt 0:00:25]} 78. Qd2 {[%emt 0:00:42]} Kg8 {[%emt 0:00:06]} 79. Qh2 {[%emt 0:00:02]} Kg7 {[%emt 0:00:19]} 80. Qg2 {[%emt 0:00:04]} Kh7 {[%emt 0:00:08]} 81. Qh3+ {[%emt 0:00:36]} Kg8 {[%emt 0:00:21]} 82. Qh2 {[%emt 0:00:56] Against Qc2+} Kg7 {[%emt 0:00:07]} 83. Qd2 {[%emt 0:00:33]} Kg8 {[%emt 0:00:15]} 84. Qc1 {[%emt 0:01:00]} Qe2+ {[%emt 0:00:46]} 85. Kb1 {[%emt 0:00:29]} Qxe5 {[%emt 0:01:24]} 86. Nc5 {[%emt 0:00:29]} Qe2 {[%emt 0:01:28]} 87. Nb3 {[%emt 0:00:23]} Qd3+ {[%emt 0:03:01]} 88. Ka2 {[%emt 0:00:09]} Qd5 {[%emt 0:00:14]} 89. Qc8+ {[%emt 0:00:24]} Kg7 {[%emt 0:00:11]} 90. Qc1 {[%emt 0:00:20]} Kh7 {[%emt 0:00:54]} 91. Qf4 {[%emt 0:00:32]} Qg2+ {[%emt 0:00:47]} 92. Nd2 {[%emt 0:00:02]} Qd5+ {[%emt 0:00:07]} 93. Nc4 {[%emt 0:00:50]} Kg7 {[%emt 0:01:03]} 94. Kb3 {[%emt 0:00:42]} Qd1+ {[%emt 0:00:52]} 95. Kxb4 {[%emt 0:00:21] Qf6+ is the strong threat. Dancing on a razor blade.} a2 {[%emt 0:00:08]} 96. Qe5+ {[%emt 0:01:16]} Kg8 {[%emt 0:00:35]} 97. Qe8+ {[%emt 0:00:18]} Kg7 {[%emt 0:00:20]} 98. Qe5+ {[%emt 0:00:30]} Kg8 {[%emt 0:00:03]} 99. Qb8+ {[%emt 0:00:00]} Kg7 {[%emt 0:00:05] ( -> ...Qb1+)} (99... Kh7 $5 100. Qh2+ Qh5 101. Qxa2 Qxg5 $14) 100. Qe5+ {[%emt 0:00:34] Weighted Error Value: White=0.20 (precise) /Black=0.24 (precise)} 1/2-1/2

[Event "FIDE CB Open 2022"]
[Site "Ceske Budejovice"]
[Date "2022.07.05"]
[Round "5.4"]
[White "Zeman, Matyas"]
[Black "Toman, Ondrej"]
[Result "0-1"]
[ECO "B10"]
[WhiteElo "2262"]
[BlackElo "2276"]
[Annotator "TA"]
[PlyCount "106"]
[EventDate "2022.07.01"]
[EventType "swiss"]
[EventCountry "CZE"]
[SourceTitle "playchess.com"]
[Source "ChessBase"]
[SourceQuality "1"]
[TimeControl "40/5400+30:1800+30"]

{[%evp 9,106,-4,12,17,25,15,30,26,39,15,38,38,47,52,62,78,64,52,63,58,63,63,66,56,75,33,31,16,49,53,49,31,52,53,63,43,47,26,26,0,0,0,31,0,0,0,0,0,0,-47,-47,-60,-60,-81,-81,-82,-60,-54,0,-68,0,-53,-48,-71,-67,-105,-98,-109,-104,-105,-98,-166,-118,-400,-397,-337,-240,-364,-224,-238,-219,-445,-423,-378,-383,-370,-327,-1177,-1170,-1170,-1028,-1152,-1143,-978,-839,-1129,-1062,-822,-605]} 1. e4 {[%emt 0:00:07]} c6 {[%emt 0:00:12]} 2. Nf3 {[%emt 0:00:39][%cal Bg1f3,Bf3e1,Be1d3][%mdl 32]} d5 {[%emt 0:00:02]} 3. d3 {[%emt 0:00:07]} dxe4 {[%emt 0:02:21]} 4. dxe4 {[%emt 0:00:05]} Qxd1+ {[%emt 0:00:05]} 5. Kxd1 {[%emt 0:00:02]} Bg4 {[%emt 0:00:58]} 6. Be2 {[%emt 0:00:43] B10: Caro-Kann: 2 d3 and 2 c4.} Nd7 {[%emt 0:00:34]} 7. Ne1 {[%emt 0:00:08]} Bxe2+ {[%emt 0:00:42]} 8. Kxe2 {[%emt 0:00:04] White has an edge.} e5 {[%emt 0:04:47]} 9. f3 {[%emt 0:02:04]} Nc5 {[%emt 0:02:46]} 10. Be3 {[%emt 0:00:19]} Ne6 {[%emt 0:00:39]} 11. Nd3 {[%emt 0:00:40]} Bd6 {[%emt 0:01:44]} 12. Nd2 {[%emt 0:00:54] [#]} f6 $146 {[%emt 0:08:34]} ({Predecessor:} 12... Bc7 13. Nc4 Nd4+ 14. Kd2 f6 15. c3 Ne6 16. a4 O-O-O 17. Kc2 b6 18. a5 Kb7 19. axb6 axb6 {½-½ (57) Blesic,V (2268)-Mustafayev,F (2311) Ayvalik 2022}) 13. a4 {[%emt 0:01:39]} Ne7 {[%emt 0:03:30]} 14. Nc4 {[%emt 0:01:23]} Bc7 {[%emt 0:01:59]} 15. a5 {[%emt 0:12:46]} Kf7 {[%emt 0:25:35]} 16. Ra3 {[%emt 0:02:07]} Rhd8 {[%emt 0:03:00]} 17. c3 {[%emt 0:05:15]} Nc8 {[%emt 0:02:11]} 18. Nc5 {[%emt 0:24:24]} Rb8 {[%emt 0:07:34]} 19. Nxe6 {[%emt 0:03:52]} Kxe6 {[%emt 0:00:01]} 20. Rha1 {[%emt 0:00:50]} Rd7 {[%emt 0:03:25]} 21. b4 {[%emt 0:08:27]} Ra8 {[%emt 0:05:11]} 22. Rb3 {[%emt 0:02:52]} Nd6 {[%emt 0:02:49]} 23. Nxd6 {[%emt 0:01:44]} Bxd6 {[%emt 0:00:02]} 24. b5 {[%emt 0:00:24]} cxb5 {[%emt 0:02:25]} 25. Rxb5 {[%emt 0:00:05]} Rc8 {[%emt 0:00:35]} (25... a6 $5 {[%cal Ra6b5]} 26. Rb6 Rc8 $11) 26. Rab1 {[%emt 0:00:05]} Rxc3 {[%emt 0:01:05]} 27. Rxb7 {[%emt 0:00:05]} Rc2+ {[%emt 0:01:45]} 28. Kd3 {[%emt 0:00:33]} Rcc7 {[%emt 0:02:27]} 29. Rxc7 {[%emt 0:04:39]} (29. a6 $11 {should be considered.} Bb4+ 30. Ke2 Rxb7 31. axb7 Rxb7 32. Bxa7 Rxa7 33. Rxb4) 29... Bxc7+ $11 {[%emt 0:00:03][%mdl 4096] Endgame KRB-KRB} 30. Kc4 {[%emt 0:00:15] [#] Threatens to win with a6.} Bxa5 {[%emt 0:00:15]} 31. Ra1 {[%emt 0:00:04]} Bb6 {[%emt 0:01:22]} 32. Ra6 {[%emt 0:00:19]} Rc7+ {[%emt 0:01:00]} 33. Kd3 {[%emt 0:01:09]} Rd7+ {[%emt 0:00:16]} 34. Kc4 {[%emt 0:00:05]} Rc7+ {[%emt 0:00:03]} 35. Kd3 $1 {[%emt 0:00:05]} Rb7 {[%emt 0:00:37]} 36. Kc4 {[%emt 0:00:49]} Kf7 {[%emt 0:00:43]} 37. Bxb6 {[%emt 0:15:21]} axb6 $15 {[%emt 0:00:08] KR-KR} 38. Ra2 {[%emt 0:00:04]} Rd7 {[%emt 0:02:06]} 39. Kb5 {[%emt 0:01:23]} Rd6 {[%emt 0:00:12]} 40. Rf2 {[%emt 0:00:15]} (40. Kc4 $17) 40... Kg6 {[%emt 0:03:02]} (40... h5 $19 41. Ra2 h4) 41. f4 $2 {[%emt 0:31:28][%mdl 8192] White does not recover from this.} (41. g3 $17 {was necessary.}) 41... exf4 $19 {[%emt 0:32:35]} 42. Rxf4 {[%emt 0:00:04]} h5 {[%emt 0:03:22] [#] aiming for ...Rd2.} 43. Rf3 {[%emt 0:02:17]} (43. Rf2 {was worth a try.}) 43... Re6 {[%emt 0:02:26]} 44. Rf4 {[%emt 0:02:34]} Kf7 {[%emt 0:02:35]} 45. h4 $2 {[%emt 0:01:10]} (45. Rh4) 45... Ke7 {[%emt 0:00:00]} 46. g3 {[%emt 0:00:00]} g6 {[%emt 0:00:00]} 47. Ka6 {[%emt 0:00:00]} Kf7 {[%emt 0:00:00]} 48. g4 $2 {[%emt 0:00:00]} (48. Kb5 Ke7 49. Kc4) 48... hxg4 {[%emt 0:00:00] Black is clearly winning.} 49. Rxg4 {[%emt 0:00:00]} Kg7 {[%emt 0:00:00]} 50. Kb5 {[%emt 0:00:00]} Kh6 {[%emt 0:00:00]} 51. Kc4 {[%emt 0:00:00]} Kh5 {[%emt 0:00:00]} 52. Rf4 {[%emt 0:00:00]} g5 {[%emt 0:00:00]} 53. hxg5 {[%emt 0:00:00]} fxg5 {[%emt 0:00:00] Weighted Error Value: White=0.51/Black=0.14 (very precise)} 0-1